bitfinex-derivatives/quotes_BTCF0:USTF0_20250626
["timestamp","ask_amount","ask_price","bid_price","bid_amount"]
[1750962660906,1.14812825,107410.0,107400.0,0.97555297]
[1750962661109,1.14712825,107410.0,107400.0,0.25883297]
[1750962661406,0.1861555,107400.0,107390.0,0.1861604]
[1750962661712,1.4448356,107400.0,107390.0,0.1861604]
[1750962661911,1.46182211,107400.0,107390.0,0.1861604]
[1750962662214,1.11358684,107400.0,107390.0,0.1861604]
[1750962662806,1.11358684,107400.0,107380.0,0.1396343]
[1750962663005,0.99696285,107390.0,107380.0,0.4170643]
[1750962663208,1.13696285,107390.0,107380.0,0.4170643]
[1750962663913,1.16711555,107390.0,107380.0,0.4170643]
[1750962664100,1.74599555,107390.0,107380.0,0.2327198]
[1750962665312,1.74899555,107390.0,107380.0,0.2327198]
[1750962665809,1.3914055,107390.0,107380.0,0.2327198]
[1750962666105,1.74899555,107390.0,107380.0,0.2327198]
[1750962666510,1.75299555,107390.0,107380.0,0.2327198]
[1750962670400,1.39219555,107390.0,107380.0,0.2327198]
[1750962670604,1.75299555,107390.0,107380.0,0.2327198]
[1750962681722,1.89263355,107390.0,107380.0,0.1861901]
[1750962681923,2.19682275,107390.0,107350.0,0.10917925]
[1750962682220,0.90461485,107360.0,107350.0,0.34196185]
[1750962682415,1.63332755,107360.0,107350.0,0.34196185]
[1750962682615,1.72892755,107360.0,107350.0,0.29540215]
[1750962682818,2.08892755,107360.0,107350.0,0.00093149]
[1750962683022,2.3977328,107360.0,107330.0,0.2793983]
[1750962683325,0.90464955,107340.0,107330.0,0.325967]
[1750962683528,1.61316955,107340.0,107330.0,0.325967]
[1750962683729,1.70976955,107340.0,107330.0,0.325967]
[1750962684022,1.3521795,107340.0,107330.0,0.325967]
[1750962684818,1.70976955,107340.0,107330.0,0.325967]
[1750962685222,1.70976955,107340.0,107330.0,0.327967]
[1750962685927,1.70976955,107340.0,107330.0,0.40361265]
[1750962687731,1.70976955,107340.0,107330.0,0.2348302]
[1750962687931,1.70976955,107340.0,107330.0,0.1882635]
[1750962688133,1.70976955,107340.0,107330.0,0.004]
[1750962688318,1.70976955,107340.0,107330.0,0.1902768]
[1750962688629,1.71076955,107340.0,107330.0,0.1952768]
[1750962688829,1.7407876,107340.0,107330.0,0.1952768]
[1750962689531,2.1015876,107340.0,107330.0,0.1952768]
[1750962689730,2.2390676,107340.0,107330.0,0.009]
[1750962690140,2.6190676,107340.0,107330.0,0.009]
[1750962698138,0.1862768,107330.0,107320.0,0.00093175]
[1750962698330,0.1862942,107320.0,107310.0,0.2190115]
[1750962698526,1.32716425,107320.0,107310.0,0.2190115]
[1750962698835,0.6870942,107320.0,107310.0,0.60910155]
[1750962699636,0.6870942,107320.0,107310.0,0.68522235]
[1750962700027,0.6870942,107320.0,107310.0,0.69122235]
[1750962700232,0.6880942,107320.0,107310.0,0.69422235]
[1750962701139,0.6880942,107320.0,107310.0,0.3366323]
[1750962704137,0.3272942,107320.0,107310.0,0.3366323]
[1750962704341,0.6880942,107320.0,107310.0,0.3366323]
[1750962705238,0.5018,107320.0,107310.0,0.3366323]
[1750962705543,0.141,107320.0,107310.0,1.05502235]
[1750962708444,0.17062805,107320.0,107310.0,1.05502235]
[1750962710743,0.71772215,107320.0,107310.0,0.69422235]
[1750962710945,0.53142805,107320.0,107310.0,0.69422235]
[1750962711133,0.17062805,107320.0,107310.0,1.05502235]
[1750962711333,0.35692215,107320.0,107310.0,0.9149923]
[1750962711533,0.17062805,107320.0,107310.0,0.9149923]
[1750962711738,0.17062805,107320.0,107310.0,0.3366323]
[1750962711945,0.17062805,107320.0,107310.0,1.27258235]
[1750962712945,0.17062805,107320.0,107310.0,1.27254235]
[1750962714345,0.35692215,107320.0,107310.0,1.27254235]
[1750962719952,0.35692215,107320.0,107310.0,0.8496323]
[1750962720451,0.38732215,107320.0,107310.0,0.8496323]
[1750962720752,0.41832215,107320.0,107310.0,0.8496323]
[1750962721154,0.41832215,107320.0,107310.0,0.2714323]
[1750962721155,0.7759122,107320.0,107310.0,0.2714323]
[1750962721354,0.8087122,107320.0,107310.0,0.2714323]
[1750962721655,1.1695122,107320.0,107310.0,0.2714323]
[1750962725151,0.8087122,107320.0,107310.0,0.2714323]
[1750962725353,1.5303122,107320.0,107310.0,0.2714323]
[1750962726253,0.38732225,107320.0,107310.0,0.62902235]
[1750962726459,0.38732225,107320.0,107310.0,0.69352235]
[1750962726752,0.20102805,107320.0,107310.0,0.69352235]
[1750962726958,0.35692225,107320.0,107310.0,0.69352235]
[1750962728757,0.17062805,107320.0,107310.0,0.69352235]
[1750962728950,0.35692215,107320.0,107310.0,0.69352235]
[1750962730360,0.35692215,107320.0,107310.0,0.3359323]
[1750962730549,0.35692215,107320.0,107310.0,0.69352235]
[1750962730754,0.41942215,107320.0,107310.0,0.69352235]
[1750962731058,0.41942215,107320.0,107310.0,0.8494723]
[1750962732258,1.1378122,107320.0,107310.0,0.2714323]
[1750962732653,1.1378122,107320.0,107310.0,0.1953115]
[1750962733158,1.7158122,107320.0,107310.0,0.009]
[1750962733554,2.0758122,107320.0,107310.0,0.009]
[1750962733756,2.57064225,107320.0,107310.0,0.009]
[1750962734259,0.1863289,107300.0,107290.0,0.00093201]
[1750962734452,2.323107,107300.0,107290.0,0.0005591]
[1750962734649,2.024507,107300.0,107290.0,0.0005591]
[1750962735263,2.344507,107300.0,107290.0,0.0005591]
[1750962736060,2.481787,107300.0,107290.0,0.0005591]
[1750962736258,2.161787,107300.0,107290.0,0.0005591]
[1750962736955,1.80419695,107300.0,107290.0,0.0005591]
[1750962737161,2.161787,107300.0,107290.0,0.1869054]
[1750962737465,2.162787,107300.0,107290.0,0.1909054]
[1750962737762,2.192987,107300.0,107290.0,0.1909054]
[1750962739368,1.44811895,107300.0,107290.0,0.1909054]
[1750962739663,1.66531895,107300.0,107290.0,0.1909054]
[1750962739863,1.69391154,107300.0,107290.0,0.1909054]
[1750962740162,1.66531895,107300.0,107290.0,0.1909054]
[1750962740356,1.11591093,107300.0,107290.0,0.1909054]
[1750962740559,1.66527895,107300.0,107290.0,0.1909054]
[1750962741260,1.66527895,107300.0,107290.0,0.0045591]
[1750962741454,2.05460215,107300.0,107290.0,0.0045591]
[1750962741654,2.39460215,107300.0,107290.0,0.0045591]
[1750962741964,2.53164215,107300.0,107290.0,0.0045591]
[1750962742962,2.53264215,107300.0,107290.0,0.0035591]
[1750962743260,0.1863636,107280.0,107270.0,0.1082478]
[1750962743458,1.02475365,107280.0,107270.0,0.294617]
[1750962743654,1.08665365,107280.0,107270.0,0.294617]
[1750962744356,1.08765365,107280.0,107270.0,0.297617]
[1750962744556,1.08765365,107280.0,107270.0,0.300617]
[1750962745261,1.66565365,107280.0,107270.0,0.0210588]
[1750962745452,1.66565365,107280.0,107270.0,0.006]
[1750962745652,2.02236292,107280.0,107270.0,0.006]
[1750962745865,1.75711419,107280.0,107270.0,0.006]
[1750962746458,1.75611419,107280.0,107270.0,0.003]
[1750962746665,1.75711419,107280.0,107270.0,0.004]
[1750962747064,1.75711419,107280.0,107270.0,0.190381]
[1750962747260,2.11791419,107280.0,107270.0,0.004]
[1750962747472,2.92254424,107280.0,107270.0,0.004]
[1750962747859,0.54397105,107270.0,107260.0,0.00113227]
[1750962748059,1.47797105,107270.0,107260.0,0.00113227]
[1750962748259,1.11797105,107270.0,107260.0,0.00113227]
[1750962748467,1.83301105,107270.0,107260.0,0.18753067]
[1750962749769,1.83301105,107270.0,107260.0,0.00113227]
[1750962749955,1.83301105,107270.0,107260.0,0.18753067]
[1750962750260,1.83301105,107270.0,107260.0,0.00113227]
[1750962750462,1.83301105,107270.0,107260.0,0.00213227]
[1750962750768,1.83301105,107270.0,107260.0,0.18853067]
[1750962751469,1.83401105,107270.0,107260.0,0.18853067]
[1750962751671,1.11897105,107270.0,107260.0,0.18853067]
[1750962751875,1.383261,107270.0,107260.0,0.18853067]
[1750962752065,1.383261,107270.0,107260.0,0.28663067]
[1750962752458,1.246421,107270.0,107260.0,0.28663067]
[1750962753861,1.246381,107270.0,107260.0,0.28663067]
[1750962756481,0.307381,107270.0,107260.0,0.64422072]
[1750962757575,0.307381,107270.0,107260.0,0.28663067]
[1750962758079,0.668181,107270.0,107260.0,0.28663067]
[1750962758376,0.699081,107270.0,107260.0,0.28663067]
[1750962759479,0.668181,107270.0,107260.0,0.28663067]
[1750962759664,0.668181,107270.0,107260.0,0.64422072]
[1750962759871,0.307381,107270.0,107260.0,0.64422072]
[1750962760071,0.121,107270.0,107260.0,1.14206072]
[1750962761770,0.001,107270.0,107260.0,1.14206072]
[1750962761976,0.121,107270.0,107260.0,1.14206072]
[1750962765278,0.121,107270.0,107260.0,1.50286072]
[1750962766070,0.15104385,107270.0,107260.0,1.50286072]
[1750962770184,0.03104385,107270.0,107260.0,1.50286072]
[1750962771185,0.03104385,107270.0,107260.0,1.80166072]
[1750962773086,0.001,107270.0,107260.0,1.80166072]
[1750962775289,0.111,107270.0,107260.0,1.80166072]
[1750962776785,0.111,107270.0,107260.0,1.66462072]
[1750962776990,0.111,107270.0,107260.0,2.37966072]
[1750962777194,0.358381,107270.0,107260.0,2.04876072]
[1750962777587,0.358381,107270.0,107260.0,1.62517067]
[1750962777787,0.358381,107270.0,107260.0,1.62513067]
[1750962778493,0.358381,107270.0,107260.0,1.98272072]
[1750962779795,0.172,107270.0,107260.0,1.98272072]
[1750962780206,0.358381,107270.0,107260.0,1.98272072]
[1750962780496,0.38845446,107270.0,107260.0,1.98272072]
[1750962781298,0.20207346,107270.0,107260.0,1.98272072]
[1750962782297,0.14107346,107270.0,107260.0,1.98272072]
[1750962782595,0.111,107270.0,107260.0,2.04402072]
[1750962782998,0.141,107270.0,107260.0,2.04402072]
[1750962783190,0.1738,107270.0,107260.0,2.04402072]
[1750962784610,0.360181,107270.0,107260.0,2.04402072]
[1750962784794,0.360181,107270.0,107260.0,1.98272072]
[1750962784996,0.38955568,107270.0,107260.0,1.26112072]
[1750962786704,0.38955568,107270.0,107260.0,0.68312072]
[1750962786902,0.38955568,107270.0,107260.0,1.26120072]
[1750962787710,0.38955568,107270.0,107260.0,0.68312072]
[1750962788005,0.75035568,107270.0,107260.0,0.90361067]
[1750962788203,1.10794573,107270.0,107260.0,0.18853067]
[1750962792608,1.68598573,107270.0,107260.0,0.18853067]
[1750962794609,1.10794573,107270.0,107260.0,0.18853067]
[1750962795508,1.11746445,107270.0,107260.0,0.18853067]
[1750962797407,1.10794573,107270.0,107260.0,0.18853067]
[1750962798916,1.11715815,107270.0,107260.0,0.18853067]
[1750962799412,1.10794573,107270.0,107260.0,0.18853067]
[1750962802113,1.11721133,107270.0,107260.0,0.18853067]
[1750962802811,1.10794573,107270.0,107260.0,0.18853067]
[1750962805613,0.74714573,107270.0,107260.0,0.18853067]
[1750962805920,1.10794573,107270.0,107260.0,0.18853067]
[1750962807420,0.74714573,107270.0,107260.0,0.18853067]
[1750962807717,1.10794573,107270.0,107260.0,0.18853067]
[1750962813121,0.74714573,107270.0,107260.0,0.18853067]
[1750962813323,1.10794573,107270.0,107260.0,0.18853067]
[1750962813822,0.75035568,107270.0,107260.0,0.18853067]
[1750962815318,0.72035568,107270.0,107260.0,0.54612072]
[1750962815524,0.72035568,107270.0,107260.0,0.64182072]
[1750962815525,0.35955568,107270.0,107260.0,0.64182072]
[1750962816423,0.32675568,107270.0,107260.0,0.64182072]
[1750962816618,0.14037468,107270.0,107260.0,0.64182072]
[1750962822738,0.14037468,107270.0,107260.0,1.00262072]
[1750962826638,0.14037468,107270.0,107260.0,0.64182072]
[1750962826836,0.32675568,107270.0,107260.0,0.64503067]
[1750962827037,0.32675568,107270.0,107260.0,1.00262072]
[1750962827438,0.32675568,107270.0,107260.0,1.71750072]
[1750962828145,0.14037468,107270.0,107260.0,1.71750072]
[1750962835348,0.14037468,107270.0,107260.0,1.35991067]
[1750962835550,0.14037468,107270.0,107260.0,1.71750072]
[1750962839249,0.14037468,107270.0,107260.0,1.35991067]
[1750962839451,0.14037468,107270.0,107260.0,1.71750072]
[1750962840146,0.14037468,107270.0,107260.0,1.35670072]
[1750962840349,0.14037468,107270.0,107260.0,1.71750072]
[1750962842152,0.32675568,107270.0,107260.0,1.71750072]
[1750962842950,0.35835568,107270.0,107260.0,1.71750072]
[1750962844355,0.35835568,107270.0,107260.0,1.35991067]
[1750962844549,0.35835568,107270.0,107260.0,1.71750072]
[1750962844953,0.17197468,107270.0,107260.0,1.71750072]
[1750962846655,0.35835568,107270.0,107260.0,1.71750072]
[1750962846848,0.17197468,107270.0,107260.0,1.71750072]
[1750962848058,0.17197468,107270.0,107260.0,1.35670072]
[1750962848256,0.17197468,107270.0,107260.0,1.71750072]
[1750962849458,0.17197468,107270.0,107260.0,1.35670072]
[1750962849652,0.17197468,107270.0,107260.0,1.71750072]
[1750962850057,0.17197468,107270.0,107260.0,1.35670072]
[1750962850256,0.17197468,107270.0,107260.0,1.89752613]
[1750962852059,0.17197468,107270.0,107260.0,1.53672613]
[1750962852252,0.17197468,107270.0,107260.0,1.89752613]
[1750962852452,0.17197468,107270.0,107260.0,1.35991067]
[1750962852653,0.17197468,107270.0,107260.0,1.89752613]
[1750962853458,0.17197468,107270.0,107260.0,1.53672613]
[1750962853652,0.17197468,107270.0,107260.0,1.89752613]
[1750962855761,0.17197468,107270.0,107260.0,1.53672613]
[1750962855959,0.17197468,107270.0,107260.0,1.89752613]
[1750962858765,0.17197468,107270.0,107260.0,1.53672613]
[1750962858956,0.17197468,107270.0,107260.0,1.89752613]
[1750962860655,0.17197468,107270.0,107260.0,1.53672613]
[1750962860861,0.17197468,107270.0,107260.0,1.89752613]
[1750962861663,0.17197468,107270.0,107260.0,1.53672613]
[1750962861863,0.17197468,107270.0,107260.0,1.89752613]
[1750962862564,0.17197468,107270.0,107260.0,1.53672613]
[1750962862765,0.17197468,107270.0,107260.0,1.89752613]
[1750962863364,0.35835568,107270.0,107260.0,0.82184613]
[1750962863564,1.25677114,107270.0,107260.0,0.18853067]
[1750962863765,0.78375568,107270.0,107260.0,0.18853067]
[1750962864064,1.05256341,107270.0,107260.0,0.18853067]
[1750962865763,0.78375568,107270.0,107260.0,0.18853067]
[1750962865963,1.05256341,107270.0,107260.0,0.18853067]
[1750962867660,1.05256341,107270.0,107260.0,0.4573384]
[1750962868369,1.18932341,107270.0,107260.0,0.4573384]
[1750962871866,0.39075568,107270.0,107260.0,1.08694613]
[1750962872066,0.32675568,107270.0,107260.0,1.15084613]
[1750962872757,0.35725568,107270.0,107260.0,1.15084613]
[1750962873570,0.14037468,107270.0,107260.0,1.15084613]
[1750962874276,0.14037468,107270.0,107260.0,0.97157837]
[1750962874464,0.03037468,107270.0,107260.0,0.97157837]
[1750962874664,0.15037468,107270.0,107260.0,0.97157837]
[1750962874973,0.03037468,107270.0,107260.0,0.97157837]
[1750962875869,0.15037468,107270.0,107260.0,0.97157837]
[1750962876272,0.03037468,107270.0,107260.0,0.97157837]
[1750962876975,0.001,107270.0,107260.0,0.97157837]
[1750962878469,0.3608,107300.0,107270.0,0.2329731]
[1750962878674,0.50990085,107300.0,107290.0,0.544694]
[1750962878868,0.14910085,107300.0,107290.0,0.905494]
[1750962879069,0.14910085,107300.0,107290.0,1.001294]
[1750962879371,0.14910085,107300.0,107290.0,1.01061837]
[1750962879573,0.15410085,107300.0,107290.0,1.01061837]
[1750962880076,0.14910085,107300.0,107290.0,1.01061837]
[1750962880275,0.15410085,107300.0,107290.0,1.01061837]
[1750962880478,0.15610085,107300.0,107290.0,1.01061837]
[1750962880878,0.34242975,107300.0,107290.0,1.01061837]
[1750962881074,0.15610085,107300.0,107290.0,1.01061837]
[1750962882274,0.15610085,107300.0,107290.0,1.02574678]
[1750962882481,0.04610085,107300.0,107290.0,1.38654678]
[1750962882675,0.03610085,107300.0,107290.0,1.38654678]
[1750962883481,0.6725482,107330.0,107320.0,0.1862942]
[1750962883681,0.75922679,107330.0,107320.0,1.27410632]
[1750962884581,0.79092679,107330.0,107320.0,1.27410632]
[1750962884885,0.79492679,107330.0,107320.0,1.27410632]
[1750962885182,0.79492679,107330.0,107320.0,0.91575862]
[1750962886880,0.79992679,107330.0,107320.0,0.91575862]
[1750962888281,0.79792679,107330.0,107320.0,0.91675862]
[1750962889476,0.79792679,107330.0,107320.0,0.20267862]
[1750962889679,0.43712679,107330.0,107320.0,0.77987862]
[1750962889880,0.79792679,107330.0,107320.0,0.77987862]
[1750962893083,0.43712679,107330.0,107320.0,0.77987862]
[1750962893285,0.79792679,107330.0,107320.0,0.77987862]
[1750962895182,0.79792679,107330.0,107320.0,1.13822632]
[1750962895482,0.780303,107330.0,107320.0,1.13822632]
[1750962895980,0.5623136,107330.0,107320.0,1.13822632]
[1750962896180,0.5308136,107330.0,107320.0,1.17062632]
[1750962896380,0.1700136,107330.0,107320.0,1.20112632]
[1750962896581,0.1700136,107330.0,107320.0,1.56192632]
[1750962898986,0.1700136,107330.0,107320.0,1.92027402]
[1750962900590,0.1700136,107330.0,107320.0,1.56192632]
[1750962900886,0.17003072,107330.0,107320.0,1.56192632]
[1750962901585,0.17003072,107330.0,107320.0,1.92027402]
[1750962902183,0.007,107330.0,107320.0,1.92027402]
[1750962902384,0.0002,107340.0,107330.0,0.1862768]
[1750962902576,0.14303351,107350.0,107340.0,0.1862595]
[1750962902776,0.27296643,107350.0,107340.0,1.5473672]
[1750962902977,0.45920853,107350.0,107340.0,0.6096072]
[1750962903178,0.1862595,107340.0,107330.0,1.400199]
[1750962903485,0.3937612,107340.0,107330.0,1.400199]
[1750962903680,0.4258612,107340.0,107330.0,1.400199]
[1750962903999,0.4198612,107340.0,107330.0,1.400199]
[1750962904289,0.4228612,107340.0,107330.0,1.401199]
[1750962904494,0.4228612,107340.0,107330.0,1.7595467]
[1750962904686,0.4288612,107340.0,107330.0,1.7595467]
[1750962905086,0.4288612,107340.0,107330.0,1.7595067]
[1750962907094,0.4288612,107340.0,107330.0,1.3987067]
[1750962907294,0.4288612,107340.0,107330.0,1.7595067]
[1750962907593,0.4288612,107340.0,107330.0,0.687759]
[1750962907789,0.7872089,107340.0,107330.0,0.6411909]
[1750962908389,0.4288612,107340.0,107330.0,0.6411909]
[1750962908590,0.4288612,107340.0,107330.0,0.9995386]
[1750962909596,0.4288612,107340.0,107330.0,0.6411909]
[1750962913699,1.1480089,107340.0,107330.0,0.1872768]
[1750962915290,1.2224574,107340.0,107330.0,0.1872768]
[1750962915688,1.7992574,107340.0,107330.0,0.1872768]
[1750962916500,1.7992574,107340.0,107330.0,0.001]
[1750962917698,2.1592574,107340.0,107330.0,0.001]
[1750962917901,2.0848089,107340.0,107330.0,0.001]
[1750962918101,2.1592574,107340.0,107330.0,0.001]
[1750962918503,2.4092574,107340.0,107330.0,0.001]
[1750962919903,2.3348089,107340.0,107330.0,0.001]
[1750962920306,1.4764612,107340.0,107330.0,0.1872768]
[1750962920901,1.56952182,107340.0,107330.0,0.1872768]
[1750962921297,1.83952182,107340.0,107330.0,0.1872768]
[1750962921597,2.1048089,107340.0,107330.0,0.1872768]
[1750962921998,0.7896612,107340.0,107330.0,0.1872768]
[1750962922203,1.4407439,107340.0,107330.0,0.1872768]
[1750962922403,1.7990916,107340.0,107330.0,0.1872768]
[1750962922805,2.1590916,107340.0,107330.0,0.1872768]
[1750962923303,1.7990916,107340.0,107330.0,0.1872768]
[1750962924608,1.2222916,107340.0,107330.0,0.1872768]
[1750962924906,1.4407439,107340.0,107330.0,0.1872768]
[1750962925106,0.8639439,107340.0,107330.0,0.1872768]
[1750962925308,1.4407439,107340.0,107330.0,0.1872768]
[1750962926305,1.3664612,107340.0,107330.0,0.1872768]
[1750962926503,2.0348089,107340.0,107330.0,0.1872768]
[1750962928897,2.0348089,107340.0,107330.0,0.001]
[1750962929103,2.1090916,107340.0,107330.0,0.001]
[1750962932712,2.0348089,107340.0,107330.0,0.001]
[1750962932913,0.1862942,107320.0,107310.0,0.2794555]
[1750962933113,1.66798605,107320.0,107310.0,0.2794555]
[1750962933412,1.76328605,107320.0,107310.0,0.2794555]
[1750962933607,0.1863116,107310.0,107300.0,0.3745734]
[1750962933808,0.713761,107310.0,107300.0,0.42078179]
[1750962934216,0.3554133,107310.0,107300.0,0.42078179]
[1750962934413,0.4186133,107310.0,107300.0,0.42078179]
[1750962935415,0.4196133,107310.0,107300.0,0.42278179]
[1750962935813,0.4196133,107310.0,107300.0,0.42378179]
[1750962937311,0.3564133,107310.0,107300.0,0.42378179]
[1750962937518,0.3564133,107310.0,107300.0,0.78212949]
[1750962937815,0.1701017,107310.0,107300.0,1.14292949]
[1750962938216,0.3564133,107310.0,107300.0,1.14292949]
[1750962941824,0.3564133,107310.0,107300.0,1.71968949]
[1750962943123,0.1701017,107310.0,107300.0,1.71968949]
[1750962946430,0.3564133,107310.0,107300.0,1.71968949]
[1750962946730,0.1701017,107310.0,107300.0,1.71968949]
[1750962949439,0.1701017,107310.0,107300.0,1.35888949]
[1750962949733,0.1701017,107310.0,107300.0,1.71968949]
[1750962950035,0.3564132,107310.0,107300.0,1.71968949]
[1750962950938,0.1701017,107310.0,107300.0,1.71968949]
[1750962951732,0.3564132,107310.0,107300.0,0.78212949]
[1750962951933,0.3564132,107310.0,107300.0,0.90540179]
[1750962952238,0.4528132,107310.0,107300.0,0.90540179]
[1750962953034,0.8111609,107310.0,107300.0,0.90540179]
[1750962953541,0.4528132,107310.0,107300.0,0.90540179]
[1750962953934,0.4528132,107310.0,107300.0,0.32868179]
[1750962957840,0.4528132,107310.0,107300.0,0.23551979]
[1750962958043,1.1719609,107310.0,107300.0,0.1893118]
[1750962959543,1.1719609,107310.0,107300.0,0.1893289]
[1750962960051,1.1814714,107310.0,107300.0,0.1893289]
[1750962960348,1.5514714,107310.0,107300.0,0.1893289]
[1750962960644,0.8231237,107310.0,107300.0,0.1893289]
[1750962961048,0.8136132,107310.0,107300.0,0.1893289]
[1750962961247,0.8136132,107310.0,107300.0,0.5476766]
[1750962961449,0.8136132,107310.0,107300.0,0.5789766]
[1750962961745,0.8136132,107310.0,107300.0,0.2206289]
[1750962961946,0.8136132,107310.0,107300.0,0.5789766]
[1750962962444,0.4528132,107310.0,107300.0,0.5789766]
[1750962962648,0.4528132,107310.0,107300.0,0.9397766]
[1750962963251,0.3564132,107310.0,107300.0,0.9397766]
[1750962963450,0.3564132,107310.0,107300.0,1.5796166]
[1750962964556,0.1701017,107310.0,107300.0,1.5796166]
[1750962965050,0.1701017,107310.0,107300.0,1.7159366]
[1750962965252,0.1701017,107310.0,107300.0,1.0029766]
[1750962965450,0.1701017,107310.0,107300.0,1.7159766]
[1750962965652,0.1601017,107310.0,107300.0,1.7159766]
[1750962966646,0.1601017,107310.0,107300.0,1.0029766]
[1750962966853,0.1601017,107310.0,107300.0,1.7159766]
[1750962969156,0.0301017,107310.0,107300.0,1.7159766]
[1750962970153,0.0002,107320.0,107310.0,0.1863115]
[1750962970450,0.87499423,107350.0,107340.0,0.1862594]
[1750962970655,1.01499423,107350.0,107340.0,0.7628994]
[1750962972157,0.84758303,107350.0,107340.0,1.1212471]
[1750962972757,0.85358303,107350.0,107340.0,1.1212471]
[1750962973057,0.85758303,107350.0,107340.0,1.1222471]
[1750962973459,0.15,107350.0,107340.0,1.49850599]
[1750962973762,0.15,107350.0,107340.0,1.69844599]
[1750962973961,0.3362421,107350.0,107340.0,1.69844599]
[1750962974261,0.3362421,107350.0,107340.0,1.72984599]
[1750962975856,1.0553898,107350.0,107340.0,0.20271829]
[1750962976058,0.7597421,107350.0,107340.0,0.20271829]
[1750962976249,1.4880898,107350.0,107340.0,0.20271829]
[1750962976457,1.1180898,107350.0,107340.0,0.77923829]
[1750962977159,1.4780898,107350.0,107340.0,0.001]
[1750962977463,1.1180898,107350.0,107340.0,0.001]
[1750962977667,1.4980898,107350.0,107340.0,0.001]
[1750962982264,1.52645793,107350.0,107340.0,0.001]
[1750962982868,1.16811023,107350.0,107340.0,0.001]
[1750962983065,1.52645793,107350.0,107340.0,0.001]
[1750962983774,1.88725793,107350.0,107340.0,0.001]
[1750962984156,1.50725793,107350.0,107340.0,0.001]
[1750962984469,1.86725793,107350.0,107340.0,0.001]
[1750962984670,1.14565793,107350.0,107340.0,0.001]
[1750962984968,1.86725793,107350.0,107340.0,0.001]
[1750962989874,1.83725793,107350.0,107340.0,0.001]
[1750962991275,1.50725793,107350.0,107340.0,0.001]
[1750962991676,1.85725793,107350.0,107340.0,0.001]
[1750962993267,1.85725793,107350.0,107340.0,0.1872594]
[1750962993574,1.93154063,107350.0,107340.0,0.001]
[1750962994074,1.93154063,107350.0,107340.0,0.1872594]
[1750962994264,1.92154063,107350.0,107340.0,0.1872594]
[1750962994573,1.95154063,107350.0,107340.0,0.1872594]
[1750962994770,1.95154063,107350.0,107340.0,0.001]
[1750962995278,1.95154063,107350.0,107340.0,0.1872594]
[1750962995769,1.95154063,107350.0,107340.0,0.001]
[1750962997173,1.95154063,107350.0,107340.0,0.1872594]
[1750962997774,1.95154063,107350.0,107340.0,0.001]
[1750962998575,1.87725793,107350.0,107340.0,0.001]
[1750962998976,1.50725793,107350.0,107340.0,0.001]
[1750962999176,1.50725793,107350.0,107340.0,0.1872594]
[1750962999381,1.60031855,107350.0,107340.0,0.1872594]
[1750963001279,1.78721085,107350.0,107340.0,0.5456071]
[1750963001473,1.73706183,107350.0,107340.0,0.2484594]
[1750963003072,1.01546183,107350.0,107340.0,0.2484594]
[1750963003278,1.37626183,107350.0,107340.0,0.2484594]
[1750963003478,1.30185023,107350.0,107340.0,0.2484594]
[1750963003678,1.37627091,107350.0,107340.0,0.2484594]
[1750963004280,1.73461861,107350.0,107340.0,0.2484594]
[1750963004486,1.79631861,107350.0,107340.0,0.2179594]
[1750963005581,1.79631861,107350.0,107340.0,0.0317]
[1750963005778,1.79631861,107350.0,107340.0,0.001]
[1750963005974,2.10631861,107350.0,107340.0,0.001]
[1750963006174,0.1862768,107330.0,107320.0,0.359095]
[1750963006379,0.71299263,107330.0,107320.0,0.420095]
[1750963007082,0.35464493,107330.0,107320.0,0.420095]
[1750963007271,0.35664493,107330.0,107320.0,0.420095]
[1750963007476,0.35764493,107330.0,107320.0,0.420095]
[1750963008076,0.71599263,107330.0,107320.0,0.2960494]
[1750963008281,0.78049263,107330.0,107320.0,0.2960494]
[1750963010186,0.35764493,107330.0,107320.0,0.2960494]
[1750963010486,0.35764493,107330.0,107320.0,0.6862971]
[1750963012485,0.35764493,107330.0,107320.0,0.3279494]
[1750963014091,0.71844493,107330.0,107320.0,0.3279494]
[1750963014284,0.35764493,107330.0,107320.0,0.3279494]
[1750963015095,0.17136813,107330.0,107320.0,1.9818448]
[1750963015493,0.03136813,107330.0,107320.0,1.9818448]
[1750963016186,0.03136813,107330.0,107320.0,2.2318448]
[1750963016389,0.0002,107340.0,107330.0,0.1862768]
[1750963016689,0.2330197,107350.0,107340.0,0.1862594]
[1750963016899,0.14,107350.0,107340.0,0.98409693]
[1750963017088,0.14,107350.0,107340.0,1.56049693]
[1750963017791,0.3322421,107350.0,107340.0,1.56049693]
[1750963018898,0.3362421,107350.0,107340.0,1.56149693]
[1750963019398,0.15,107350.0,107340.0,1.56149693]
[1750963019600,0.15,107350.0,107340.0,1.59389693]
[1750963020599,0.3362421,107350.0,107340.0,1.59389693]
[1750963021091,0.15,107350.0,107340.0,1.59389693]
[1750963021793,0.10652068,107380.0,107370.0,0.1862074]
[1750963022095,0.13,107380.0,107370.0,1.63337552]
[1750963022302,0.001,107390.0,107380.0,0.18619]
[1750963022494,0.3071727,107390.0,107380.0,0.9679377]
[1750963023002,0.121,107390.0,107380.0,0.9679377]
[1750963023701,0.3071727,107390.0,107380.0,0.9679377]
[1750963024203,0.3081727,107390.0,107380.0,0.9679377]
[1750963024794,0.122,107390.0,107380.0,0.9679377]
[1750963025501,0.3081727,107390.0,107380.0,0.9679377]
[1750963026001,0.3111727,107390.0,107380.0,0.9689377]
[1750963032303,0.125,107390.0,107380.0,0.9689377]
[1750963032508,0.3111727,107390.0,107380.0,0.9689377]
[1750963034116,0.3111727,107390.0,107380.0,0.5756377]
[1750963034406,0.79701145,107390.0,107380.0,0.89935]
[1750963034598,1.15535915,107390.0,107380.0,0.1871901]
[1750963035312,0.81373876,107390.0,107380.0,0.1871901]
[1750963036309,0.79701145,107390.0,107380.0,0.1871901]
[1750963037809,0.79701145,107390.0,107380.0,0.001]
[1750963037810,1.15535915,107390.0,107380.0,0.001]
[1750963040302,1.52535915,107390.0,107380.0,0.001]
[1750963040909,0.1862074,107370.0,107360.0,0.27932]
[1750963041109,1.07339385,107370.0,107360.0,0.27932]
[1750963041307,1.16699385,107370.0,107360.0,0.27932]
[1750963041509,0.80864615,107370.0,107360.0,0.27932]
[1750963041906,0.80864615,107370.0,107360.0,0.28132]
[1750963042306,0.80864615,107370.0,107360.0,0.28432]
[1750963043009,0.80864615,107370.0,107360.0,0.237765]
[1750963043404,0.81064615,107370.0,107360.0,0.235765]
[1750963043604,1.17831031,107370.0,107360.0,0.003]
[1750963044512,0.1862247,107360.0,107350.0,0.4154683]
[1750963044711,1.70151115,107360.0,107350.0,0.4154683]
[1750963045210,1.34316345,107360.0,107350.0,0.4154683]
[1750963046006,1.34316345,107360.0,107350.0,0.4164683]
[1750963048013,1.34316345,107360.0,107350.0,0.4154683]
[1750963048401,1.34318302,107360.0,107350.0,0.4154683]